{"text_format":"1","workbook":"xlsx","n_sheets":3,"sheets":["Pilotes","Copilotes","Montagne"],"not_rendered":{"charts":0,"images":0,"macros":1,"external_links":0,"defined_names":3,"comments":0,"pivot_tables":0},"unopened":[],"bounds":{"document_bytes":16777216,"sheet_cells":100000,"rows_first":2000,"rows_last":500,"rows_between":2000,"halvings":0,"cell_chars":16384,"cell_head_chars":4096},"cells_cut":0,"cells_raw":0,"read":"whole","date_system":"1900"}

{"sheet":"Pilotes","index":0,"n_rows":75,"n_cols":57,"rows_kept":75,"cut":false,"hidden":false,"merged":[[0,0,0,56]]}
["CLASSEMENT PROVISOIRE CHALLENGE ASA LOZERE PILOTE 2024"]
[null,null,"Côte Du Tarn","VAISON la Romaine","Herault","MARCILLAC","Vins Du Gard","Pays Du Gier","Terre Des Causses","Vins Des Corbières","Pays D'Olliergues","Quercy","Lyon Charbonnière","Pays De La Gentiane","Lozère","Val d'Agout","Terre Des Castines","Coutellerie","Pays Viganais","Val Dadou","Aleria","Saint Geniez D'olt","Ecureuil","Printemps","Forez","Gard","Haut Vallée De La Loire","Sidobre","Vallespir","ROUERGUE","Bagnols Les Bains","Montagne Noire","Fourme D'Ambert","24 Périgort","Saint Afrique","Velay Auvergne","Terre De Lozère","Cantal","Haut Lignon","Terre De Decouverte","Pays De Saint Yrieix","Camisards","Ardeche","Terre Des Cardabelles","Montbrisonnais","Cevennes","Mont Domes","Sarrian","Pays Rignacois","Terre du Vaucluse","Bas Vivarais","Fenouilledes","Noix De Firminy","Cigalois","Balagne","Piémont Orlonnais","TOTAL"]
[1,"SERIEYS Jérémie",null,null,32,null,null,null,null,48,null,null,null,null,92,null,null,null,null,null,null,null,null,32,null,48,null,null,null,null,40,null,null,null,null,null,null,null,null,null,null,32,null,null,null,50,null,null,null,null,null,48,null,48,null,null,{"$f":"SUM(C3:BD3)","v":470}]
[2,"MOULIN François",3,null,null,null,null,null,40,null,null,null,null,null,null,null,null,null,null,null,50,null,null,null,null,null,null,null,null,null,null,null,null,null,null,null,52,null,null,null,null,null,null,65,null,null,null,null,null,55,null,null,null,null,18,null,283]
[3,"MONNIER Raphaël",null,null,10,24,null,12,null,null,null,null,null,0,62,null,null,null,null,null,null,null,null,null,21,12,14,null,null,null,32,null,null,null,null,14,null,null,15,null,null,null,null,null,null,5,null,null,20,null,null,null,14,21,null,null,276]
[4,"BRAJON Ludovic",null,null,null,null,null,null,50,null,null,null,null,null,null,null,55,null,null,null,25,null,null,null,null,null,null,null,null,null,null,null,null,null,null,null,52,null,null,null,null,null,null,50,null,null,null,null,null,40,null,null,null,null,null,null,272]
[5,"MALHAUTIER Ludovic",null,null,null,null,20,null,null,null,null,null,null,null,62,null,null,null,16,null,null,null,null,16,null,21,null,null,null,null,28,null,12,null,null,null,null,null,null,null,null,20,null,null,null,null,null,null,null,null,null,null,null,null,null,null,195]
[6,"FLEURY Alain",null,null,null,null,18,null,null,null,null,null,null,null,47,null,null,null,null,null,null,null,null,null,null,33,null,null,null,null,28,null,null,null,null,null,null,null,null,null,null,22,null,null,null,null,null,24,null,null,null,null,null,null,null,null,172]
[7,"MERLE Roger",null,null,null,null,null,null,null,null,null,null,null,null,62,null,null,null,null,null,null,null,null,null,null,30,null,null,null,null,32,null,null,null,null,null,null,null,null,null,null,20,24,null,null,null,null,null,null,null,null,null,null,null,null,null,168]
[8,"LYOTARD Florian",null,null,null,null,null,33,null,null,null,null,null,null,67,null,null,null,null,null,null,null,null,null,null,30,null,null,null,null,28,null,null,null,null,null,null,null,null,null,null,null,null,null,null,null,null,null,null,null,null,null,null,null,null,null,158]
[9,"CROZAT Frederic",null,null,null,42,null,null,null,null,null,null,null,null,6,null,null,null,null,null,null,20,null,null,null,null,null,null,null,null,44,null,null,18,null,null,null,null,null,null,0,null,null,null,null,null,null,null,null,null,null,null,null,null,null,null,130]
[10,"BRUNET Thierry",null,null,null,null,24,null,null,null,null,null,null,null,32,null,null,null,12,null,null,null,null,null,null,6,null,null,null,null,32,null,12,null,null,null,null,null,null,null,null,6,null,null,null,5,null,null,null,null,0,null,null,0,null,null,129]
[11,"VAILLE Mickael",null,null,null,null,null,null,50,null,null,null,null,null,null,null,0,null,null,null,null,null,null,null,null,null,null,null,null,null,null,null,null,null,null,null,37,null,null,null,null,null,null,0,null,null,null,null,null,35,null,null,null,null,null,null,122]
[12,"RAYMOND Eric",null,null,null,null,null,null,0,null,null,null,null,null,null,null,0,null,null,32,null,null,null,null,null,null,null,null,null,25,null,null,null,null,null,null,null,null,null,null,null,null,null,40,null,null,null,null,null,null,null,null,null,null,null,22,119]
[13,"HOUBERDON Thierry",null,null,12,21,null,null,null,null,null,null,null,null,12,null,null,null,null,null,null,null,null,null,null,18,null,null,null,null,24,null,null,null,null,null,null,10,null,null,null,null,null,null,null,null,21,null,null,null,null,null,null,null,null,null,118]
[14,"BLANC Bruno",null,null,14,30,null,null,null,null,null,null,null,null,6,null,null,null,null,null,null,null,null,null,null,null,null,null,null,25,null,null,null,null,null,null,null,null,null,null,null,null,null,null,null,40,null,null,null,null,null,null,null,null,null,null,115]
[15,"DECHANET Alexandre",null,null,null,null,null,null,null,null,null,null,null,null,null,null,null,null,null,null,null,null,null,null,null,null,null,null,null,null,null,null,null,null,null,null,62,null,null,null,null,null,null,null,null,null,null,null,null,50,null,null,null,null,null,null,112]
[16,"PAGANI Jordy",null,null,null,null,null,null,null,null,null,null,null,null,47,null,null,null,null,null,null,4,null,null,null,null,null,null,null,null,24,null,null,null,null,null,null,14,null,null,null,12,null,null,null,null,null,null,8,null,null,null,null,null,null,null,109]
[17,"TABUSSE Sylvain",null,null,0,null,null,null,null,null,null,null,null,null,37,null,null,null,null,null,null,2,null,null,null,18,null,null,null,null,22,null,null,null,null,null,null,null,null,null,null,0,null,null,null,null,null,12,2,null,null,null,null,null,null,null,93]
[17,"BLANC David",null,null,null,null,null,null,null,null,null,null,null,null,47,null,null,null,null,null,null,null,null,null,null,null,null,null,null,null,6,null,null,null,null,null,null,null,null,null,null,16,null,null,null,null,null,null,null,null,null,null,null,24,null,null,93]
[19,"FRAISSE Serge",null,null,null,null,null,null,null,0,null,null,null,null,6,null,null,null,0,null,null,null,null,null,null,33,null,null,12,null,26,null,null,null,0,null,null,null,null,null,null,null,0,null,null,null,null,null,null,null,null,null,null,15,null,null,92]
[20,"GOUT Jonathan",null,null,12,null,22,null,null,null,null,null,null,null,6,null,null,null,null,null,null,null,null,null,null,null,null,null,null,null,null,null,null,null,null,null,null,null,null,null,null,22,0,null,null,null,null,null,null,null,26,null,null,null,null,null,88]
[21,"ANDRE Gérard",null,null,8,null,null,null,null,null,null,null,null,null,27,null,null,null,null,null,null,0,null,null,null,null,null,null,null,null,null,null,null,null,null,null,null,16,null,null,null,null,null,null,null,null,null,null,24,null,12,null,null,null,null,null,87]
[22,"OLMI Gaëtan",null,null,6,null,8,null,null,12,null,null,null,null,6,null,null,null,10,null,null,null,null,12,null,0,null,null,24,null,null,null,null,null,null,null,null,null,null,null,null,0,0,null,null,null,null,null,null,null,8,null,null,null,null,null,86]
[22,"PANSARD Olivier",null,null,null,null,null,null,null,null,null,null,null,null,null,null,null,null,null,null,null,null,null,null,null,null,null,null,null,null,null,null,null,null,null,null,6,null,null,null,null,null,null,null,null,null,null,null,null,80,null,null,null,null,null,null,86]
[24,"LAURAIRE Samuel",null,null,12,0,null,null,null,null,null,null,null,null,null,null,null,null,null,null,null,null,null,null,null,18,null,null,null,null,26,null,4,null,null,null,null,16,null,null,null,null,null,null,null,null,null,null,2,null,null,null,null,null,null,null,78]
[25,"ROUSSET Eric",null,null,null,24,null,null,null,null,null,null,0,null,null,null,null,null,null,null,null,null,null,null,null,null,null,null,null,null,null,null,null,null,null,null,52,null,null,null,null,null,null,0,null,null,null,null,null,null,null,null,null,null,null,null,76]
[26,"RICARD Kévin",null,null,null,null,null,null,null,null,null,null,null,null,null,null,null,null,null,null,null,10,null,null,null,null,null,null,null,null,22,null,null,null,null,16,null,16,null,null,null,null,null,null,null,null,null,null,null,null,null,null,null,null,null,null,64]
[27,"CRESPIN Bruno",null,null,null,null,null,null,null,null,null,null,null,null,47,null,null,null,null,null,null,null,null,null,null,15,null,null,null,null,null,null,null,null,null,null,null,null,null,null,null,null,0,null,null,null,null,null,null,null,null,0,null,null,null,null,62]
[27,"LEMEUNIER Rudy",null,null,null,null,null,null,null,null,null,null,null,null,null,null,null,null,null,null,null,null,null,null,null,null,null,null,null,null,null,null,null,null,null,null,12,null,null,null,null,null,null,50,null,null,null,null,null,0,null,null,null,null,null,null,62]
[27,"VELAY Mickael",null,null,null,null,10,null,null,null,null,null,null,null,6,null,null,null,12,null,null,null,null,14,null,null,null,null,null,null,null,null,null,null,null,null,null,null,null,null,null,null,null,null,null,20,null,null,null,null,null,null,null,0,null,null,62]
[30,"LECOINTRE Nicky",null,null,null,null,null,null,null,null,null,null,null,null,32,null,null,null,null,null,null,null,null,null,null,null,null,null,null,null,26,null,null,null,null,null,null,null,null,null,null,null,null,null,null,null,null,null,null,null,null,null,null,null,null,null,58]
[31,"PROUZET Boris",null,null,null,null,null,null,null,null,null,null,null,null,null,null,null,null,16,null,null,null,null,null,null,null,null,null,null,null,null,null,null,null,null,null,null,null,null,null,null,null,null,null,null,40,null,null,null,null,null,null,null,0,null,null,56]
[32,"VIALLE Samuel",null,null,null,null,null,null,null,null,null,null,null,null,null,null,null,null,null,null,null,0,null,null,null,null,null,null,null,null,32,null,null,null,null,null,null,null,null,null,null,22,null,null,null,null,null,null,null,null,null,null,null,null,null,null,54]
[33,"COT Grégory",null,null,null,null,null,null,null,null,null,null,null,null,null,null,null,null,10,null,null,null,null,null,null,null,null,null,null,null,26,null,null,null,null,null,null,null,null,null,null,0,null,null,null,null,null,16,null,null,null,null,null,null,null,null,{"$f":"SUM(C35:BD35)","v":52}]
[34,"ROUX Cédric",null,null,null,null,null,null,null,null,null,null,null,null,null,null,null,null,null,null,null,null,null,null,null,null,null,null,null,null,6,null,14,null,null,null,null,null,null,null,null,16,null,null,null,null,null,null,null,null,null,null,null,15,null,null,51]
[35,"BERANGIER Clément",null,null,null,null,null,null,null,null,null,null,null,null,null,null,null,null,null,null,null,null,null,null,null,null,null,null,null,null,null,null,null,null,null,null,null,null,null,null,null,null,null,null,null,null,null,null,null,50,null,null,null,null,null,null,50]
[36,"PASSEMARD Sébastien",null,null,null,null,null,null,null,null,null,null,null,null,null,null,35,null,null,null,null,null,null,null,null,null,null,null,null,null,null,null,null,null,null,null,12,null,null,null,null,null,null,0,null,null,null,null,null,null,null,null,null,null,null,null,47]
[36,"CASTELBOU Franck",null,null,null,21,null,null,null,null,null,null,null,null,12,null,null,null,null,null,null,14,null,null,null,null,null,null,null,null,null,null,null,null,0,null,null,null,null,null,null,null,null,null,null,null,null,null,null,null,null,null,null,null,null,null,47]
[38,"AFFORTIT Quentin",null,null,null,null,null,null,null,null,null,null,null,null,6,null,null,null,null,null,null,null,null,null,null,12,null,null,null,null,18,null,null,null,null,null,null,null,null,null,null,8,null,null,null,null,null,null,null,null,null,null,null,null,null,null,44]
[38,"LIAUTARD Yann",null,null,null,null,null,null,null,null,null,null,null,null,null,null,null,null,null,null,null,null,null,null,null,null,null,null,null,null,null,null,null,null,null,null,null,null,null,null,null,14,null,null,null,null,null,null,null,null,null,null,null,30,null,null,44]
[40,"ALVARD Quentin",null,null,null,null,null,null,null,null,null,null,null,null,42,null,null,null,null,null,null,null,null,null,null,null,null,null,null,null,null,null,null,null,null,null,null,null,null,null,null,null,null,null,null,null,null,null,null,null,null,null,null,null,null,null,42]
[40,"SAUCE Raphael",null,null,null,null,null,null,null,null,null,null,null,null,42,null,null,null,null,null,null,null,null,null,null,null,null,null,null,null,null,null,null,null,null,null,null,null,null,null,null,null,null,null,null,null,null,null,null,null,null,null,null,null,null,null,42]
[42,"BARBERA Frédéric",null,null,null,null,null,null,null,null,null,null,null,null,null,null,null,null,null,null,null,null,null,null,null,null,null,null,null,null,null,3,null,null,null,null,null,null,null,null,null,null,null,null,null,25,null,null,null,null,null,null,null,12,null,null,40]
[43,"LONGEAC Yoann",null,null,null,null,null,null,null,null,null,null,null,null,null,null,null,null,null,null,0,null,null,null,null,null,null,null,null,null,14,null,null,null,null,null,null,null,null,20,null,null,null,null,null,null,null,null,null,null,null,null,null,null,null,null,34]
[44,"BOUTIN Lionel",null,null,null,null,null,null,null,null,null,null,null,null,6,null,null,null,null,null,null,null,null,null,null,null,null,null,null,null,null,null,null,null,null,null,null,null,null,null,null,null,null,null,27,null,null,null,null,null,null,null,null,null,null,null,33]
[45,"MARTEL Hervé",null,null,null,null,4,null,null,null,null,null,null,null,28,null,null,null,null,null,null,null,null,null,null,null,null,null,null,null,null,null,null,null,null,null,null,null,null,null,null,null,null,null,null,null,null,null,null,null,null,null,null,null,null,null,32]
[45,"LEBORNE Bastien",null,null,null,null,null,null,null,null,null,null,null,null,null,null,null,null,null,null,null,null,null,null,null,null,null,null,null,null,32,null,null,null,null,0,null,null,null,null,null,null,null,null,null,null,null,null,null,null,null,null,null,null,null,null,32]
[45,"ARGILIER Frederic",null,null,null,null,2,null,null,null,null,null,null,null,6,null,null,null,null,null,null,null,null,null,null,6,null,null,null,null,16,null,null,null,null,null,null,null,null,null,null,2,null,null,null,null,null,null,null,null,null,null,null,null,null,null,32]
[45,"PALMER Camille",null,null,null,null,null,null,null,null,null,null,null,null,null,null,null,null,null,null,null,null,null,null,null,null,null,null,null,null,22,null,null,null,null,null,null,null,null,null,null,10,null,null,null,null,null,null,null,null,0,null,null,null,null,null,32]
[45,"VALENTIN Cyril",null,null,null,null,null,null,null,0,null,null,null,null,6,null,null,null,null,null,null,null,null,null,null,0,null,null,null,null,null,null,null,null,null,null,null,null,null,null,null,14,null,null,null,null,null,null,null,null,null,0,null,12,null,null,32]
[45,"HEBRARD Michel",null,null,null,null,null,null,null,null,null,null,null,null,null,null,null,null,null,null,null,null,null,null,null,null,null,null,null,null,6,null,null,null,null,null,null,null,null,null,null,null,null,null,null,null,null,null,null,null,8,null,null,18,null,null,32]
[51,"BERTRAND David",null,null,null,null,null,null,null,null,null,null,null,null,null,null,null,null,0,null,null,null,null,null,null,null,null,14,null,null,null,null,null,null,16,null,null,null,null,null,null,null,null,null,null,null,null,null,null,null,null,null,null,null,null,null,30]
[52,"BRES Vincent",null,null,null,null,null,null,25,null,null,null,null,null,null,null,null,null,null,null,null,null,null,null,null,null,null,null,null,null,null,null,null,null,null,null,null,null,null,null,null,null,null,0,null,null,null,null,null,null,null,null,null,null,null,null,25]
[53,"VEYRUN Guillaume",null,null,null,null,18,null,null,null,null,null,null,null,6,null,null,null,null,null,null,null,null,null,null,null,null,null,null,null,null,null,null,null,null,null,null,null,null,null,null,null,null,null,null,null,null,null,null,null,null,null,null,null,null,null,24]
[53,"FERRIER Jérôme",null,null,null,null,null,null,null,null,null,null,null,null,6,null,null,null,null,null,null,null,null,null,null,null,null,null,null,null,18,null,null,null,null,null,null,null,null,null,null,null,null,null,null,null,null,null,null,null,null,null,null,null,null,null,24]
[55,"VAZ DOS SANTOS Kevin",null,null,null,null,null,null,null,null,null,null,null,null,6,null,null,null,null,null,null,null,null,null,null,null,null,null,null,null,6,null,null,null,null,null,null,10,null,null,null,null,null,null,null,null,0,null,null,null,null,null,null,null,null,null,22]
[56,"MARCILLAC Arnaud",null,null,null,null,null,null,null,null,null,null,null,null,null,null,null,null,null,null,null,20,null,null,null,null,null,null,null,null,null,null,null,null,null,null,null,null,null,null,null,null,null,null,null,null,null,null,null,null,null,null,null,null,null,null,20]
[56,"FAURE Michael",null,null,null,null,null,null,null,null,null,null,null,null,null,null,null,null,null,null,null,null,null,null,null,null,null,null,null,null,18,null,null,null,null,null,null,null,null,null,null,null,null,null,null,null,null,null,null,null,2,null,null,null,null,null,20]
[58,"RAOUX Patrice",null,null,null,null,0,null,null,null,null,null,null,null,6,null,null,null,null,null,null,null,null,null,null,null,null,null,null,null,6,null,null,null,null,null,6,null,null,null,null,null,null,null,null,null,null,null,null,null,null,null,null,null,null,null,18]
[59,"DELBOS David",null,null,null,null,4,null,null,null,null,null,null,null,6,null,null,null,null,null,null,null,null,null,null,null,null,null,null,null,6,null,null,null,null,null,null,null,null,null,null,null,null,null,null,null,null,null,null,null,null,null,null,null,null,null,16]
[59,"TEYSSIER Frédéric",null,null,null,null,null,null,null,null,null,null,null,null,null,null,null,null,null,null,null,null,null,null,null,null,null,null,null,null,null,null,null,null,null,null,null,null,null,null,null,null,null,null,null,null,null,null,null,null,16,null,null,0,null,null,16]
[61,"ROCHER Arnaud",3,null,null,null,null,null,0,null,null,null,null,null,null,null,null,null,null,null,0,null,null,null,null,null,null,null,null,null,null,null,null,null,null,null,6,null,null,null,null,null,null,0,null,null,null,null,null,null,null,null,null,null,6,null,15]
[62,"BARDIN Cyril",null,null,null,null,null,null,null,null,null,14,null,null,null,null,null,null,null,null,null,null,null,null,null,null,null,null,null,null,null,null,null,null,null,null,null,null,null,null,null,null,null,null,null,null,null,null,null,null,null,null,null,null,null,null,14]
[62,"Vaille Pierre Erik",null,null,null,null,null,null,null,null,null,null,null,null,null,null,null,null,null,null,null,null,null,null,null,null,null,null,null,null,null,null,null,null,null,null,null,null,null,14,null,null,null,null,null,null,null,null,null,null,null,null,null,null,null,null,14]
[64,"GINIER Kévin",null,null,2,null,null,null,null,null,null,null,null,null,null,null,null,2,null,null,null,0,null,null,null,null,null,null,null,null,6,null,null,null,null,null,null,null,null,null,null,null,null,null,null,null,null,null,null,null,2,null,null,null,null,null,12]
[65,"PASCAL Regis",null,null,null,null,null,null,null,null,null,null,null,null,null,null,null,2,null,null,null,2,null,null,null,null,null,null,null,null,6,null,null,null,null,null,null,null,null,null,null,null,null,null,null,null,null,null,null,null,null,null,null,null,null,null,{"$f":"SUM(C67:BD67)","v":10}]
[65,"BARTHOLOME Patricde",null,null,null,null,null,null,null,null,null,null,null,null,null,null,null,null,null,null,null,null,null,null,null,null,null,null,null,null,null,null,null,null,null,null,null,null,null,null,null,10,null,null,null,null,null,null,null,null,null,null,null,null,null,null,10]
[67,"VIGUIER Thierry",null,0,null,null,null,null,null,null,null,null,null,null,null,null,null,null,0,null,null,null,null,null,null,null,null,null,null,null,null,9,null,null,null,null,null,null,null,null,null,null,null,null,null,null,null,null,null,null,null,0,null,null,null,null,9]
[68,"PLAN Matthieu",null,null,null,null,null,null,null,null,0,null,null,null,6,null,null,null,null,null,null,null,null,null,null,null,null,null,null,null,null,null,null,null,null,null,null,null,null,null,null,null,null,null,null,null,null,null,null,null,null,null,null,null,null,null,6]
[68,"PASCAL Joris",null,null,null,null,null,null,null,null,null,null,null,null,null,null,null,null,null,null,null,null,null,null,null,null,null,null,null,null,6,null,null,null,null,null,null,null,null,null,null,null,null,null,null,null,null,null,null,null,null,null,null,null,null,null,6]
[68,"BRES Bruno",null,null,null,null,null,null,null,null,null,null,null,null,null,null,null,null,null,null,null,null,null,null,null,null,null,null,null,null,null,null,null,null,null,null,6,null,null,null,null,null,null,null,null,null,null,null,null,null,null,null,null,null,null,null,6]
[68,"PANSARD Frédéric",null,null,null,null,null,null,null,null,null,null,null,null,null,null,null,null,null,null,null,null,null,null,null,null,null,null,null,null,null,null,null,null,null,null,6,null,null,null,null,null,null,null,null,null,null,null,null,0,null,null,null,null,null,null,6]
[68,"CONTANS Lionel",null,null,null,null,null,null,null,null,null,null,null,null,null,null,null,null,null,null,null,null,null,null,null,null,null,null,null,null,null,null,null,null,null,null,6,null,null,null,null,null,null,null,null,null,null,null,null,null,null,null,null,null,null,null,6]
[73,"MEYNADIER Thierry",null,null,0,null,null,null,null,null,null,0,null,null,null,null,null,null,null,null,null,null,null,null,null,null,null,null,null,null,null,null,null,null,null,null,null,null,null,null,null,null,null,null,null,null,null,null,null,null,null,null,null,null,null,null,0]

{"sheet":"Copilotes","index":1,"n_rows":96,"n_cols":86,"rows_kept":96,"cut":false,"hidden":false,"merged":[]}
[null,null,null,null,null,null,null,null,null,null,null,null,null,null,null,null,null,null,null,null,"CLASSEMENT PROVISOIRE CHALLENGE CO-PILOTE ASA LOZERE 2024"]
[null,null,"gonfaron","Rallye Haute - Azergue","VAISON la Romaine","Côte Du Tran","Baldomérien","Pays Ajassiens","Herault","Haute provense","Touquet","Marcillac","Vins Du Gard","Pays Du Gier","Cœur Des Bastides","Vins Des Corbières","Pays D'Olliergues","Venasque","Ronde De La Giraglia","Balcon Est Du Vercors","Autocourse","Quercy","Lyon Charbonnière","Pays De La Gentiane","Terre Des Causses","Lozère","Val D'agout","Terre Des Castines","Lorraine","Bligny S ur Ouche","Coutellerie","Pays Viganais","Val Dadou","Aleria","Saint Geniez D'olt","Ecureuil","Laragnais","Printemps","Forez","Voges","Gard","Haute Vallée De La Loire","Sidobre","Vallespir","Rouergue","Sibiului Bilstein","Bagols Les Bains","Drôme Paul Frideman","Montagne Noire","Fourme D'Ambert","Piémont Oloronnais","Bourgogne Côte Chalonnaise","Perigort 24","Sel","Saint Afique","Pays Basque","Velay Auvergne","Terre DE Lozere","Cantal","Picodon","Mont Blanc","Pays De Fayence","Haut Ligon","Terre DE Decouverte","Chasselas","Camisards","Ardeche","Terre Des Cardabelles","Fium Orbu Castellu","Montbrisonnais","Tour De Corse","Midi Toulousain","Gap Racing","autun","Cevennes","Mont domes","Sarrians","Pays Rignacois","Terre Du Vaucluse","Bas Vivarais","Fenouilledes","Var","Noix De Firminy","Cigalois","Balagne","TOTAL"]
[1,"CRESPIN Stéphane",null,null,null,null,null,null,32,null,null,null,null,null,null,48,null,null,null,null,null,null,null,null,null,92,null,null,null,null,null,null,null,null,null,null,null,32,null,null,48,null,null,null,null,null,40,null,null,null,null,null,18,null,null,null,null,null,null,null,null,null,null,null,null,32,null,null,null,null,null,null,null,null,50,null,null,null,null,null,48,null,null,48,null,{"$f":"SUM(C3:CG3)","v":488}]
[2,"TURIERE Frédéric",null,null,null,3,null,null,null,null,null,null,null,null,null,null,null,null,null,null,null,null,null,null,40,null,null,null,null,null,null,10,null,50,null,null,null,null,null,null,null,null,null,null,null,null,null,null,null,null,null,null,null,null,null,null,null,52,null,null,null,null,null,null,null,null,null,65,null,null,null,null,null,null,null,null,null,null,55,8,null,null,null,null,18,{"$f":"SUM(C4:CG4)","v":301}]
[3,"SALANSON Thierry",null,null,null,null,null,null,null,null,null,null,null,null,null,null,null,null,null,null,null,null,null,null,50,12,null,55,null,null,null,null,null,null,null,null,null,null,null,null,null,null,null,null,null,null,null,null,null,null,null,null,null,null,null,null,null,52,null,null,null,null,null,null,null,null,null,50,null,null,null,null,null,null,null,null,null,null,40,null,null,null,null,null,null,{"$f":"SUM(C5:CG5)","v":259}]
[4,"GAVET Brice",null,null,null,0,null,null,null,null,50,null,null,null,null,null,null,null,null,null,null,null,50,null,null,null,null,null,null,null,null,null,null,0,null,null,null,null,null,null,null,null,null,null,15,null,null,null,null,null,null,null,null,null,null,null,null,62,null,null,null,null,null,null,22,null,null,null,null,null,null,null,null,null,null,null,null,null,null,null,null,null,null,null,null,{"$f":"SUM(C6:CG6)","v":199}]
[5,"MERLE Mark",null,null,null,null,null,null,null,null,null,null,null,null,null,null,null,null,null,null,null,null,null,null,null,62,null,null,null,null,null,null,null,null,null,null,null,null,null,null,30,null,null,null,null,null,32,null,null,null,null,null,null,null,null,null,null,null,null,null,null,null,null,null,null,20,24,null,null,null,null,null,null,null,null,null,null,null,null,null,null,null,null,15,null,{"$f":"SUM(C7:CG7)","v":183}]
[6,"LYOTARD Arnault",null,null,null,null,null,null,null,null,null,null,33,null,null,null,null,null,null,null,null,null,null,null,null,67,null,null,null,null,null,null,null,null,null,null,null,null,null,null,30,null,null,null,null,null,28,null,null,null,null,null,null,null,null,null,null,null,null,null,null,null,null,null,null,null,null,null,null,null,null,null,null,null,null,null,null,null,null,null,null,null,null,null,null,{"$f":"SUM(C8:CG8)","v":158}]
[7,"COUZON Sandrine",null,null,null,null,null,null,null,null,null,null,null,null,null,null,null,null,null,null,null,null,null,null,50,22,null,0,null,null,null,null,null,null,null,null,null,null,null,null,null,null,null,null,null,null,null,null,null,0,null,null,null,null,null,null,null,37,null,null,null,null,null,14,null,null,null,0,null,null,null,null,null,null,null,null,null,null,35,null,null,null,null,null,null,{"$f":"SUM(C9:CG9)","v":158}]
[7,"MONNIER Anthony",null,null,null,null,null,null,null,null,null,null,null,null,null,null,null,null,null,null,null,null,null,null,null,62,null,null,null,null,null,null,null,null,null,null,null,null,null,null,null,14,null,null,null,null,32,null,null,null,null,null,null,null,null,null,null,null,null,null,null,null,null,null,null,null,null,null,null,null,null,null,null,null,5,null,null,20,null,null,null,null,null,21,null,{"$f":"SUM(C10:CG10)","v":154}]
[9,"BACON Guillaume",null,null,null,null,null,null,null,null,null,null,18,null,null,null,null,null,null,null,null,null,null,null,null,47,null,null,null,null,null,null,null,null,null,null,null,null,null,null,33,null,null,null,null,null,28,null,null,null,null,null,null,null,null,null,null,null,null,null,null,null,null,null,null,null,null,null,null,null,null,null,null,null,null,null,24,null,null,null,null,null,null,null,null,{"$f":"SUM(C11:CG11)","v":150}]
[10,"GINIER Valérie",null,null,null,null,null,null,12,null,null,21,null,null,null,null,null,null,null,null,null,null,null,null,25,null,null,null,null,null,null,null,null,null,10,null,null,null,null,null,18,null,null,null,null,null,24,null,null,null,null,null,null,null,null,null,null,6,10,null,null,null,null,null,null,null,null,null,null,null,null,null,null,null,null,21,null,null,null,null,null,null,null,null,null,{"$f":"SUM(C12:CG12)","v":147}]
[10,"LEON Thierry",null,null,24,null,null,null,null,null,null,null,10,null,null,null,null,33,null,null,null,null,null,null,null,null,null,0,null,null,null,null,null,80,null,null,null,null,null,null,null,null,null,null,null,null,null,null,null,null,null,null,null,null,null,null,null,null,null,null,null,null,null,null,null,null,null,null,null,null,0,null,null,null,null,null,null,null,null,null,null,null,null,null,null,{"$f":"SUM(C13:CG13)","v":147}]
[12,"VIALLE Clément",null,null,null,null,0,null,null,null,null,null,null,null,null,null,null,null,null,null,null,14,null,null,null,42,null,null,null,null,null,null,null,null,0,null,null,null,null,null,null,null,null,null,0,null,32,null,null,null,null,null,null,null,null,null,null,null,null,null,null,null,null,null,null,22,null,null,null,27,null,null,null,null,null,null,null,null,null,null,null,null,null,null,null,{"$f":"SUM(C14:CG14)","v":137}]
[13,"RUFFONI Mickaël",null,null,null,null,null,null,null,null,null,null,null,null,null,null,null,null,null,null,null,null,null,null,null,null,null,null,null,null,null,null,null,null,null,null,12,null,null,null,null,null,null,null,null,null,null,null,null,null,null,null,null,null,null,null,null,62,null,null,null,null,null,null,null,null,null,null,null,null,null,null,null,null,null,null,null,null,50,null,null,null,null,null,null,{"$f":"SUM(C15:CG15)","v":124}]
[14,"PRIVAT Thibault",null,null,null,null,null,null,null,null,null,null,null,null,null,null,null,null,null,null,null,null,null,null,40,null,null,null,null,null,null,null,null,null,null,null,null,null,null,null,null,null,null,null,null,null,null,null,null,null,null,null,null,null,null,null,null,32,null,null,20,null,null,null,null,null,null,null,null,null,null,null,null,null,null,null,null,null,30,null,null,null,null,null,null,{"$f":"SUM(C16:CG16)","v":122}]
[15,"GROLIER Cédric",null,null,null,null,null,null,14,null,null,30,null,null,null,null,null,null,null,null,null,null,null,null,null,6,null,null,null,null,null,null,null,null,null,null,null,null,null,null,null,null,null,null,25,null,null,null,null,null,null,null,null,null,null,null,null,null,null,null,null,null,null,null,null,null,null,null,null,null,null,null,null,null,40,null,null,null,null,null,null,null,null,null,null,{"$f":"SUM(C17:CG17)","v":115}]
[15,"DALLE Océane",null,null,null,null,null,null,null,null,null,9,null,null,null,null,null,null,null,null,null,null,null,null,null,null,24,null,null,null,null,null,4,null,0,null,null,null,null,null,null,null,null,null,40,null,null,null,null,null,null,null,null,null,null,24,null,null,null,null,null,null,null,null,null,null,null,null,null,null,null,12,null,null,null,null,null,2,null,null,null,null,null,null,null,{"$f":"SUM(C18:CG18)","v":115}]
[17,"CRESPIN Lucas",null,null,null,null,null,null,null,null,null,42,null,null,null,null,null,null,null,null,null,null,null,null,null,6,null,null,null,null,null,null,null,null,20,null,null,null,null,null,null,null,null,null,null,null,44,null,null,null,null,null,null,null,null,null,null,null,null,null,null,null,null,null,null,null,null,null,null,null,null,null,null,null,null,null,null,null,null,null,null,null,null,null,null,{"$f":"SUM(C19:CG19)","v":112}]
[18,"ASSENAT Jean-François",null,null,null,null,null,null,null,null,null,null,null,null,null,null,null,null,null,null,null,null,null,null,null,32,null,null,null,null,null,12,null,null,null,null,null,null,null,null,6,null,null,null,null,null,32,null,null,null,null,null,null,null,null,null,null,null,null,null,null,null,null,null,null,6,null,null,16,null,null,null,null,null,5,null,null,null,null,0,null,null,null,null,null,{"$f":"SUM(C20:CG20)","v":109}]
[18,"ROBERT Philippe",null,null,null,null,null,null,null,null,null,null,null,null,null,null,null,null,null,null,null,null,null,null,null,47,null,null,null,null,null,null,null,null,4,null,null,null,null,null,null,null,null,null,null,null,24,null,null,null,null,null,null,null,null,null,null,null,14,null,null,null,null,null,null,12,null,null,null,null,null,null,null,null,null,null,null,8,null,null,null,null,null,null,null,{"$f":"SUM(C21:CG21)","v":109}]
[20,"VOTTCHALL Christophe",null,null,null,null,null,null,null,null,null,null,null,null,null,null,null,null,null,null,null,null,null,null,25,null,null,0,null,null,null,null,null,null,null,null,null,null,null,null,null,null,null,null,null,null,null,null,null,null,null,null,null,null,null,null,null,6,null,null,null,null,null,null,null,2,null,null,null,null,null,null,null,null,null,null,16,null,null,null,null,50,null,null,null,{"$f":"SUM(C22:CG22)","v":99}]
[21,"RAYMOND Nathaly",null,null,null,null,null,null,null,null,null,null,null,null,null,null,null,null,null,null,null,null,null,null,null,null,null,null,null,null,null,null,32,null,null,null,null,null,null,null,null,null,null,null,25,null,null,null,null,null,null,null,null,null,null,null,null,null,null,null,null,null,null,null,null,null,null,40,null,null,null,null,null,null,null,null,null,null,null,null,null,null,null,null,null,{"$f":"SUM(C23:CG23)","v":97}]
[22,"AUBERT Jordan",null,null,null,null,null,null,12,null,null,null,22,null,null,null,null,null,0,null,null,null,null,null,null,null,null,null,null,null,null,null,null,null,null,null,null,null,null,null,null,null,null,21,null,null,null,null,null,null,null,null,null,null,null,null,null,null,null,null,null,null,null,null,null,22,0,null,null,null,null,null,null,null,5,null,null,null,null,null,null,null,null,12,null,{"$f":"SUM(C24:CG24)","v":94}]
[23,"MONDIERE Benjamin",null,null,null,null,null,39,null,null,5,null,null,0,null,null,null,null,null,null,null,null,0,null,null,null,null,null,0,18,null,null,null,null,null,null,null,null,null,0,null,null,null,null,null,null,null,null,null,null,null,0,null,null,null,null,null,null,null,null,null,12,null,null,null,null,null,null,null,null,0,null,null,18,null,null,null,null,null,null,null,null,null,null,null,{"$f":"SUM(C25:CG25)","v":92}]
[23,"NOEL Linda",0,null,null,12,null,null,18,0,null,null,null,null,null,0,null,null,null,null,null,null,null,null,null,6,null,null,null,null,null,null,null,null,null,null,0,null,null,null,null,null,null,null,null,null,6,null,null,4,null,null,null,null,null,null,20,null,null,null,null,null,null,null,null,14,null,null,null,null,null,null,null,null,null,null,null,null,null,12,null,null,null,null,null,{"$f":"SUM(C26:CG26)","v":92}]
[23,"GAUSSENT Florence",null,null,null,null,null,null,null,null,null,null,null,null,null,0,null,null,null,null,null,null,null,null,null,6,null,null,null,null,null,0,null,null,null,null,null,null,null,null,33,null,null,12,null,null,26,null,null,null,null,null,null,null,null,null,null,null,null,null,null,null,null,null,null,null,0,null,null,null,null,null,null,null,null,null,null,null,null,null,null,null,null,15,null,{"$f":"SUM(C27:CG27)","v":92}]
[26,"TABUSSE Manuela",null,null,null,null,null,null,0,null,null,null,null,null,null,null,null,null,null,null,null,null,null,null,null,37,null,null,null,null,null,null,null,null,null,null,null,null,null,null,18,null,null,null,null,null,22,null,null,null,null,null,null,null,null,null,null,null,null,null,null,null,null,null,null,null,null,null,null,null,null,null,null,null,null,null,12,2,null,null,null,null,null,null,null,{"$f":"SUM(C28:CG28)","v":91}]
[26,"LOMBARDI Enzo",null,null,null,null,null,null,null,null,null,null,null,null,null,null,null,null,null,null,null,null,null,null,null,6,null,null,null,null,null,null,null,null,null,null,null,null,null,null,null,null,null,null,null,null,null,null,null,null,null,null,null,null,null,null,null,null,null,null,null,null,null,null,null,null,null,null,null,null,null,null,32,null,null,null,null,null,null,null,null,5,null,48,null,{"$f":"SUM(C29:CG29)","v":91}]
[28,"VALENTIN Cédric",null,null,null,null,null,null,8,null,null,null,null,null,null,null,null,null,null,null,null,null,null,null,null,27,null,null,null,null,2,null,null,null,0,null,null,null,null,null,null,null,null,null,null,null,null,null,null,null,null,null,null,null,null,null,null,null,16,null,null,null,null,null,null,null,null,null,null,null,null,null,null,null,null,null,null,24,null,12,null,null,null,null,null,{"$f":"SUM(C30:CG30)","v":89}]
[29,"PANSARD Célia",null,null,null,null,null,null,null,null,null,null,null,null,null,null,null,null,null,null,null,null,null,null,null,null,null,null,null,null,null,null,null,null,null,null,null,null,null,null,null,null,null,null,null,null,null,null,null,null,null,null,null,null,null,null,null,6,null,null,null,null,null,null,null,null,null,null,null,null,null,null,null,null,null,null,null,null,80,null,null,null,null,null,null,{"$f":"SUM(C31:CG31)","v":86}]
[30,"COMBOROURE Benoît",null,null,null,null,null,null,null,null,null,null,null,null,null,null,null,null,null,0,null,null,null,null,null,6,null,null,null,null,null,null,null,null,null,21,null,null,null,null,null,null,null,null,null,null,null,21,null,null,null,null,null,null,null,null,null,null,null,16,null,null,null,null,null,null,0,null,null,null,null,null,null,null,null,null,8,null,null,8,null,null,null,null,null,{"$f":"SUM(C32:CG32)","v":80}]
[31,"GELY Pauline",null,null,null,null,null,null,12,null,null,0,null,null,null,null,null,null,null,null,null,null,null,null,null,null,null,null,null,null,null,null,null,null,null,null,null,null,null,null,18,null,null,null,null,null,26,null,null,4,null,null,null,null,null,null,null,null,16,null,null,null,null,null,null,null,null,null,null,null,null,null,null,null,null,null,null,2,null,null,null,null,null,null,null,{"$f":"SUM(C33:CG33)","v":78}]
[32,"SAUCE Christophe",null,null,null,null,null,null,null,null,null,24,null,null,null,null,null,null,null,null,null,null,0,null,null,null,null,null,null,null,null,null,null,null,null,null,null,null,null,null,null,null,null,null,null,null,null,null,null,null,null,null,null,null,null,null,null,52,null,null,null,null,null,null,null,null,null,0,null,null,null,null,null,null,null,null,null,null,null,null,null,null,null,null,null,{"$f":"SUM(C34:CG34)","v":76}]
[33,"ABELLAN Benoît",null,null,null,null,null,null,null,null,null,null,null,null,null,null,null,null,null,null,null,null,null,null,null,null,null,null,null,null,null,10,null,null,null,null,null,null,null,null,null,null,null,null,null,null,26,null,null,null,null,null,null,null,null,null,null,null,null,null,null,null,null,null,null,null,null,null,null,null,null,null,null,null,null,null,16,null,null,null,21,null,null,null,null,{"$f":"SUM(C35:CG35)","v":73}]
[34,"DERORY Julie",null,null,null,null,null,null,null,null,null,null,null,null,null,null,null,null,null,null,null,null,null,null,null,null,null,null,null,null,20,null,null,null,null,null,null,null,null,null,null,null,null,null,null,null,null,null,null,null,null,null,null,null,null,null,null,null,null,null,null,null,null,null,null,null,null,null,null,null,null,null,null,null,null,48,null,null,null,null,null,null,null,null,null,{"$f":"SUM(C36:CG36)","v":68}]
[34,"HONORE Clarisse",null,null,null,null,null,null,6,null,null,null,8,null,null,12,null,null,null,null,null,null,null,null,null,6,null,null,null,null,null,null,null,null,null,null,null,12,null,null,0,null,null,null,null,null,6,null,null,null,null,null,null,null,null,null,null,null,null,null,null,null,null,null,null,null,0,null,null,null,null,null,null,null,null,null,null,null,null,null,null,null,null,18,null,{"$f":"SUM(C37:CG37)","v":68}]
[36,"ANDRE Romain",null,null,null,null,null,null,null,null,null,null,null,null,null,null,null,null,null,null,null,null,null,null,null,47,null,null,null,null,null,null,null,null,null,null,null,null,null,null,15,null,null,null,null,null,null,null,null,null,null,null,null,null,null,null,null,null,null,null,null,null,null,null,null,null,0,null,null,null,null,null,null,null,null,null,null,null,null,null,0,null,null,null,null,{"$f":"SUM(C38:CG38)","v":62}]
[36,"LAURAIRE Samuel",null,null,null,null,null,null,null,null,null,null,null,null,null,null,null,null,null,null,null,null,null,null,null,null,null,null,null,null,null,null,null,null,null,48,null,null,null,null,null,null,null,null,null,null,null,null,null,null,null,null,null,14,null,null,null,null,null,null,null,null,null,null,null,null,null,null,null,null,null,null,null,null,null,null,null,null,null,null,null,null,null,null,null,{"$f":"SUM(C39:CG39)","v":62}]
[38,"CAMINADA Michel",null,null,null,null,null,null,null,null,null,null,null,null,null,null,null,null,null,null,null,null,null,null,null,52,null,null,null,null,null,null,null,null,null,null,null,null,null,null,null,null,null,null,null,null,null,null,null,null,null,null,null,null,null,null,null,null,null,null,null,null,null,null,null,null,null,null,null,null,null,null,null,null,null,null,null,null,null,null,null,null,null,null,null,{"$f":"SUM(C40:CG40)","v":52}]
[38,"RAYMOND Marie-Amélie",null,null,null,null,null,null,null,null,null,0,null,null,null,null,null,null,null,null,null,null,null,null,null,null,null,null,null,null,null,null,null,null,null,null,null,null,null,null,null,null,null,null,null,null,null,null,null,10,22,null,null,null,10,null,null,null,null,null,null,null,null,null,null,null,null,null,null,null,null,null,null,null,null,null,10,null,null,null,null,null,null,null,null,{"$f":"SUM(C41:CG41)","v":52}]
[40,"VIGNES Guillaume",null,null,null,null,null,null,null,null,null,null,10,null,null,null,null,null,null,null,null,null,null,null,null,6,null,null,null,null,null,null,null,null,null,null,null,14,null,null,null,null,null,null,null,null,null,null,null,null,null,null,null,null,null,null,null,null,null,null,null,null,null,null,null,null,null,null,null,null,null,null,null,null,20,null,null,null,null,null,null,null,null,null,null,{"$f":"SUM(C42:CG42)","v":50}]
[40,"BARTHOLOME Patrice",null,null,null,null,null,null,null,null,null,null,null,null,null,null,null,null,null,null,null,null,null,null,null,null,null,null,null,null,null,null,null,null,null,null,null,null,null,null,null,null,null,null,null,null,null,null,null,null,null,null,null,null,null,null,null,null,null,null,null,null,null,null,null,10,null,null,null,null,null,null,null,null,40,null,null,null,null,null,null,null,null,null,null,{"$f":"SUM(C43:CG43)","v":50}]
[42,"HUGON Jean François",null,null,null,null,null,null,null,null,null,null,12,null,null,null,null,null,null,null,null,null,null,0,null,null,null,null,null,null,null,null,null,null,null,null,null,null,21,null,null,null,null,null,null,null,null,null,null,null,null,null,null,null,null,null,null,null,null,null,null,null,15,null,null,null,null,null,null,null,null,null,null,null,null,null,null,null,null,null,null,null,null,null,null,{"$f":"SUM(C44:CG44)","v":48}]
[43,"RAUZIER Alban",null,null,null,null,null,null,null,null,null,null,null,null,null,null,null,null,null,null,null,null,null,null,null,47,null,null,null,null,null,null,null,null,null,null,null,null,null,null,null,null,null,null,null,null,null,null,null,null,null,null,null,null,null,null,null,null,null,null,null,null,null,null,null,null,null,null,null,null,null,null,null,null,null,null,null,null,null,null,null,null,null,null,null,{"$f":"SUM(C45:CG45)","v":47}]
[44,"PALMER Camille",null,null,null,null,null,null,10,null,null,24,null,null,null,null,null,null,null,null,null,null,null,null,null,null,null,null,null,null,null,null,null,null,null,null,null,null,null,null,12,null,null,null,null,null,null,null,null,null,null,null,null,null,null,null,null,null,null,null,null,null,null,null,null,null,null,null,null,null,null,null,null,null,null,null,null,null,null,null,null,null,null,null,null,{"$f":"SUM(C46:CG46)","v":46}]
[45,"HILAIRE Antoine",null,null,null,null,null,null,null,null,null,null,null,null,14,null,null,null,null,null,null,null,null,null,null,null,null,null,null,null,null,6,null,null,0,null,null,null,null,null,null,null,null,null,null,null,null,null,24,null,null,null,null,null,null,null,null,null,null,null,null,null,null,null,null,null,null,null,null,null,null,null,null,null,null,null,null,null,null,null,null,null,null,null,null,{"$f":"SUM(C47:CG47)","v":44}]
[45,"SERVIERES Florian",null,null,null,null,null,null,null,null,null,null,null,null,null,null,null,null,null,null,null,null,null,null,null,6,null,null,null,null,null,null,null,null,null,null,null,null,null,null,12,null,null,null,null,null,18,null,null,null,null,null,null,null,null,null,null,null,null,null,null,null,null,null,null,8,null,null,null,null,null,null,null,null,null,null,null,null,null,null,null,null,null,null,null,{"$f":"SUM(C48:CG48)","v":44}]
[45,"LIAUTARD Sonia",null,null,null,null,null,null,null,null,null,null,null,null,null,null,null,null,null,null,null,null,null,null,null,null,null,null,null,null,null,null,null,null,null,null,null,null,null,null,null,null,null,null,null,null,null,null,null,null,null,null,null,null,null,null,null,null,null,null,null,null,null,null,null,14,null,null,null,null,null,null,null,null,null,null,null,null,null,null,null,null,null,30,null,{"$f":"SUM(C49:CG49)","v":44}]
[48,"LEONARD Flavio",null,null,null,null,null,null,null,null,null,null,null,null,null,null,null,null,null,null,null,null,null,null,null,42,null,null,null,null,null,null,null,null,null,null,null,null,null,null,null,null,null,null,null,null,null,null,null,null,null,null,null,null,null,null,null,null,null,null,null,null,null,null,null,null,null,null,null,null,null,null,null,null,null,null,null,null,null,null,null,null,null,null,null,{"$f":"SUM(C50:CG50)","v":42}]
[49,"AYRAL Axel",null,null,null,null,null,null,null,null,null,null,null,null,null,null,null,null,null,null,null,null,null,null,null,null,null,null,null,null,null,null,null,null,null,null,null,0,null,null,null,null,null,null,null,null,null,null,3,null,null,null,null,null,null,null,null,null,null,null,null,null,null,null,null,null,null,null,null,null,null,null,null,null,25,null,null,null,null,null,null,null,null,12,null,{"$f":"SUM(C51:CG51)","v":40}]
[49,"ROBLIN Mathieu",null,null,null,null,null,null,null,null,null,null,null,null,null,null,null,null,null,null,null,null,null,null,null,null,null,null,null,null,null,null,null,null,null,null,null,null,null,null,null,null,null,null,null,null,null,null,null,null,null,null,null,null,null,null,null,null,null,null,null,null,null,null,null,null,null,null,null,null,null,null,null,null,null,null,null,null,40,null,null,null,null,null,null,{"$f":"SUM(C52:CG52)","v":40}]
[51,"BIANCHETTO Julie",null,null,null,null,null,null,null,null,null,null,null,null,null,null,null,null,null,null,null,null,null,null,null,null,null,null,null,null,null,0,null,null,null,null,null,null,null,null,null,null,14,null,null,null,null,null,null,null,null,null,null,null,16,null,null,null,null,null,null,null,null,null,null,8,null,null,null,null,null,null,null,null,null,null,null,null,null,null,null,null,null,null,null,{"$f":"SUM(C53:CG53)","v":38}]
[52,"LARGUIER Stéphan",null,null,null,null,null,null,null,null,null,null,null,null,null,null,null,null,null,null,null,null,null,null,null,null,null,null,null,null,null,null,null,null,null,null,null,null,null,null,18,null,null,null,null,null,null,null,null,null,null,null,null,null,null,null,null,null,null,null,null,null,null,null,null,18,null,null,null,null,null,null,null,null,null,null,null,null,null,null,null,null,null,null,null,{"$f":"SUM(C54:CG54)","v":36}]
[52,"PRIVAT Christophe",null,null,null,null,null,null,null,null,null,null,null,null,null,null,null,null,null,null,null,null,null,null,null,6,null,null,null,null,null,null,null,null,null,null,null,null,null,null,null,null,null,null,null,null,null,null,null,null,null,null,null,null,null,null,null,null,null,null,null,null,null,null,null,null,null,30,null,null,null,null,null,null,null,null,null,null,null,null,null,null,null,null,null,{"$f":"SUM(C55:CG55)","v":36}]
[54,"PASSEMARD Virginie",null,null,null,null,null,null,null,null,null,null,null,null,null,null,null,null,null,null,null,null,null,null,null,null,null,35,null,null,null,null,null,null,null,null,null,null,null,null,null,null,null,null,null,null,null,null,null,null,null,null,null,null,null,null,null,null,null,null,null,null,null,null,null,null,null,0,null,null,null,null,null,null,null,null,null,null,0,null,null,null,null,null,null,{"$f":"SUM(C56:CG56)","v":35}]
[55,"BRUN Elodie",null,null,null,null,null,null,null,null,null,null,null,null,null,null,null,null,null,null,null,null,null,null,null,null,null,null,null,null,null,null,null,0,null,null,null,null,null,null,null,null,null,null,null,null,14,null,null,null,null,null,null,null,null,null,null,null,null,null,null,null,null,20,null,null,null,null,null,null,null,null,null,null,null,null,null,null,null,null,null,null,null,null,null,{"$f":"SUM(C57:CG57)","v":34}]
[56,"GARD Rémi",null,null,null,null,null,null,null,null,null,null,null,null,null,null,null,null,null,null,null,null,null,null,null,32,null,null,null,null,null,null,null,null,null,null,null,null,null,null,null,null,null,null,null,null,null,null,null,null,null,null,null,null,null,null,null,null,null,null,null,null,null,null,null,null,null,null,null,null,null,null,null,null,null,null,null,null,null,null,null,null,null,null,null,{"$f":"SUM(C58:CG58)","v":32}]
[56,"MARTEL Catherine",null,null,null,null,null,null,null,null,null,null,4,null,null,null,null,null,null,null,null,null,null,null,null,28,null,null,null,null,null,null,null,null,null,null,null,null,null,null,null,null,null,null,null,null,null,null,null,null,null,null,null,null,null,null,null,null,null,null,null,null,null,null,null,null,null,null,null,null,null,null,null,null,null,null,null,null,null,null,null,null,null,null,null,{"$f":"SUM(C59:CG59)","v":32}]
[56,"LETIENT Océane",null,null,null,null,null,null,null,null,null,null,null,null,null,null,null,null,null,null,null,null,null,null,null,null,null,null,null,null,null,null,null,null,null,null,null,null,null,null,null,null,null,null,null,null,22,null,null,null,null,null,null,null,null,null,null,null,null,null,null,null,null,null,null,10,null,null,null,null,null,null,null,null,null,null,null,null,null,0,null,null,null,null,null,{"$f":"SUM(C60:CG60)","v":32}]
[59,"BELTRAN Jordan",null,null,null,null,null,null,null,null,null,null,4,null,null,null,null,null,null,null,null,null,null,null,null,6,null,null,null,null,null,14,null,null,null,null,null,null,null,null,null,null,null,null,null,null,6,null,null,null,null,null,null,null,null,null,null,null,null,null,null,null,null,null,null,null,null,null,null,null,null,null,null,null,null,null,null,null,null,null,null,null,null,null,null,{"$f":"SUM(C61:CG61)","v":30}]
[59,"AUBIN Clement",null,null,null,null,null,null,null,null,null,null,2,null,null,null,null,null,null,null,null,null,null,null,null,6,null,null,null,null,null,null,null,null,null,null,null,null,null,null,6,null,null,null,null,null,16,null,null,null,null,null,null,null,null,null,null,null,null,null,null,null,null,null,null,null,null,null,null,null,null,null,null,null,null,null,null,null,null,null,null,null,null,null,null,{"$f":"SUM(C62:CG62)","v":30}]
[59,"MONNIER Léo",null,null,null,null,null,null,null,null,null,null,null,null,null,null,null,null,null,null,null,null,null,null,null,null,null,null,null,null,null,null,null,null,null,null,null,null,null,null,null,null,null,null,null,null,null,null,null,null,null,null,null,null,null,null,14,null,null,null,null,null,null,null,null,null,null,null,null,null,null,null,null,null,null,null,null,null,null,null,null,null,16,null,null,{"$f":"SUM(C63:CG63)","v":30}]
[59,"BLANC Noah",null,null,null,null,null,null,null,null,null,null,null,null,null,null,null,null,null,null,null,null,null,null,null,null,null,null,null,null,null,null,null,null,null,null,null,null,null,null,null,null,null,null,null,null,6,null,null,null,null,null,null,null,null,null,null,null,null,null,null,null,null,null,null,null,null,null,null,null,null,null,null,null,null,null,null,null,null,null,null,null,null,24,null,{"$f":"SUM(C64:CG64)","v":30}]
[63,"BRUN Grégory",null,null,null,null,null,null,null,null,null,null,null,null,null,null,null,null,null,null,null,null,null,null,null,null,null,null,null,null,null,null,null,null,null,null,null,null,null,null,null,null,null,null,null,null,null,null,null,14,null,null,null,null,14,null,null,null,null,null,null,null,null,null,null,null,null,null,null,null,null,null,null,null,null,null,null,null,null,null,null,null,null,null,null,{"$f":"SUM(C65:CG65)","v":28}]
[63,"RAOUX Justin",null,null,null,null,null,null,null,null,null,null,0,null,null,null,null,null,null,null,10,null,null,null,null,6,null,null,null,null,null,null,null,null,null,null,null,null,null,null,null,null,null,null,null,null,6,null,null,null,null,null,null,null,null,null,null,6,null,null,null,null,null,null,null,null,null,null,null,null,null,null,null,null,null,null,null,null,null,null,null,null,null,null,null,{"$f":"SUM(C66:CG66)","v":28}]
[65,"HOUBERDON Thierry",null,null,null,null,null,null,null,null,null,null,null,null,null,null,null,null,null,null,null,null,null,null,null,null,null,null,null,null,null,null,null,25,null,null,null,null,null,null,null,null,null,null,null,null,null,null,null,null,null,null,null,null,null,null,null,null,null,null,null,null,null,null,null,null,null,null,null,null,null,null,null,null,null,null,null,null,null,null,null,null,null,null,null,{"$f":"SUM(C67:CG67)","v":25}]
[66,"MAURIN Ludovic",null,null,null,null,null,null,null,null,null,null,null,null,null,null,null,null,null,null,null,null,null,null,null,6,null,null,null,null,null,null,null,null,null,null,null,null,null,null,null,null,null,null,null,null,18,null,null,null,null,null,null,null,null,null,null,null,null,null,null,null,null,null,null,null,null,null,null,null,null,null,null,null,null,null,null,null,null,null,null,null,null,null,null,{"$f":"SUM(C68:CG68)","v":24}]
[67,"VAZ DOS SANTOS Lucas",null,null,null,null,null,null,null,null,null,null,null,null,null,null,null,null,null,null,null,null,null,null,null,6,null,null,null,null,null,null,null,null,null,null,null,null,null,null,null,null,null,null,null,null,6,null,null,null,null,null,null,null,null,null,null,null,10,null,null,null,null,null,null,null,null,null,null,null,null,null,null,null,null,0,null,null,null,null,null,null,null,null,null,{"$f":"SUM(C69:CG69)","v":22}]
[68,"LAFON Cyril",null,null,null,null,null,null,null,null,null,null,null,null,null,null,null,null,null,null,null,null,null,null,null,null,null,null,null,null,null,null,null,null,null,null,null,null,null,null,null,null,null,null,null,null,null,null,null,null,null,null,null,null,10,null,null,null,10,null,null,null,null,null,null,null,null,null,null,null,null,null,null,null,null,null,null,null,null,null,null,null,null,null,null,{"$f":"SUM(C70:CG70)","v":20}]
[69,"BERENGIER Clément",null,null,null,null,null,null,null,null,null,null,null,null,null,null,null,null,null,null,null,null,null,null,null,6,null,null,null,null,null,null,null,null,null,null,null,null,null,null,null,null,null,null,null,null,null,12,null,null,null,null,null,null,null,null,null,null,null,null,null,null,null,null,null,null,null,0,null,null,null,null,null,null,null,null,null,null,null,null,null,null,null,null,null,{"$f":"SUM(C71:CG71)","v":18}]
[70,"CHALVIDAN Matthis",null,null,null,null,null,null,null,null,null,null,null,null,null,null,null,null,null,null,null,null,null,null,null,null,null,null,null,null,null,16,null,null,null,null,null,null,null,null,null,null,null,null,null,null,null,null,null,null,null,null,null,null,null,null,null,null,null,null,null,null,null,null,null,null,null,null,null,null,null,null,null,null,null,null,null,null,null,null,null,null,null,null,null,{"$f":"SUM(C72:CG72)","v":16}]
[70,"LEBORNE Bastien",null,null,null,null,null,null,null,null,null,null,null,null,null,null,null,null,null,null,null,null,null,null,null,null,null,null,null,null,null,null,null,null,null,null,null,null,null,null,null,null,null,null,null,null,null,null,null,null,null,null,null,null,null,null,null,null,null,null,null,null,null,null,null,16,null,null,null,null,null,null,null,null,null,null,null,null,null,null,null,null,null,null,null,{"$f":"SUM(C73:CG73)","v":16}]
[70,"BLANC Clement",null,null,null,null,null,null,null,null,null,null,null,null,null,null,null,null,null,null,null,null,null,null,null,null,null,null,null,null,null,null,null,null,null,null,null,null,null,null,null,null,null,null,null,null,null,null,null,null,null,null,null,null,null,null,null,null,null,null,null,null,null,null,null,16,null,null,null,null,null,null,null,null,null,null,null,null,null,null,null,null,null,null,null,{"$f":"SUM(C74:CG74)","v":16}]
[73,"ALVARD Quentin",null,null,null,null,null,null,null,null,null,null,10,null,null,null,null,null,null,null,null,null,null,null,null,null,null,null,null,null,null,null,null,null,null,null,null,null,null,null,null,null,null,null,null,null,null,null,null,null,null,null,null,null,null,null,null,null,null,null,null,null,null,null,null,null,null,null,null,null,null,null,null,null,5,null,null,null,null,null,null,null,null,null,null,{"$f":"SUM(C75:CG75)","v":15}]
[73,"PAULHAN Sabine",null,null,null,3,null,null,null,null,null,null,null,null,null,null,null,null,null,null,null,null,null,null,0,null,null,null,null,null,null,null,null,0,null,null,null,null,null,null,null,null,null,null,null,null,null,null,null,null,null,null,null,null,null,null,null,6,null,null,null,null,null,null,null,null,null,0,null,null,null,null,null,null,null,null,null,null,null,null,null,null,null,null,6,{"$f":"SUM(C76:CG76)","v":15}]
[75,"CASTELBOU Adrien",null,null,null,null,null,null,null,null,null,null,null,null,null,null,null,null,null,null,null,null,null,null,null,null,null,null,null,null,null,null,null,null,14,null,null,null,null,null,null,null,null,null,null,null,null,null,null,null,null,null,null,null,null,null,null,null,null,null,null,null,null,null,null,null,null,null,null,null,null,null,null,null,null,null,null,null,null,null,null,null,null,null,null,{"$f":"SUM(C77:CG77)","v":14}]
[75,"MALZIEU Joris",null,null,null,null,null,null,null,null,null,null,null,null,null,null,null,null,null,null,null,null,null,null,null,null,null,null,null,null,null,null,null,null,null,null,null,null,null,null,null,null,null,null,null,null,14,null,null,null,null,null,null,null,null,null,null,null,null,null,null,null,null,null,null,null,null,null,null,null,null,null,null,null,null,null,null,null,null,null,null,null,null,null,null,{"$f":"SUM(C78:CG78)","v":14}]
[75,"MALZIEU Anthony",null,null,null,null,null,null,null,null,null,null,null,null,null,null,null,null,null,null,null,null,null,null,null,null,null,null,null,null,null,null,null,null,null,null,null,null,null,null,null,null,null,null,null,null,null,null,null,null,null,null,null,null,null,null,null,null,null,null,null,null,null,null,null,null,null,null,null,null,null,null,null,null,null,null,null,null,null,null,null,null,14,null,null,{"$f":"SUM(C79:CG79)","v":14}]
[78,"MARTI Nicolas",null,null,null,null,null,null,10,null,null,null,null,null,null,null,null,null,null,null,null,null,null,null,null,null,null,null,null,null,null,null,null,null,null,null,null,null,null,null,null,null,null,null,null,null,null,null,null,null,null,null,null,null,null,null,null,null,null,null,null,null,null,null,null,null,null,null,null,null,null,null,null,null,null,null,null,null,null,null,null,null,null,null,null,{"$f":"SUM(C80:CG80)","v":10}]
[79,"MONTEIL Clara",null,null,null,null,null,null,2,null,null,null,null,null,null,null,null,null,null,null,null,null,null,null,null,null,null,null,null,null,null,null,null,null,0,null,null,null,null,null,null,null,null,null,null,null,6,null,null,null,null,null,null,null,null,null,null,null,null,null,null,null,null,null,null,null,null,null,null,null,null,null,null,null,null,null,null,null,null,2,null,null,null,null,null,{"$f":"SUM(C81:CG81)","v":10}]
[79,"RIEU Maxime",null,0,null,null,0,null,null,null,null,null,null,null,null,null,null,null,null,null,null,null,null,null,null,null,null,null,null,null,null,null,null,null,null,null,null,null,null,null,null,null,null,null,null,null,null,null,null,null,null,null,null,null,null,null,null,null,null,null,null,null,null,null,null,null,null,null,null,null,null,null,null,null,null,null,null,null,null,8,null,null,null,null,null,{"$f":"SUM(C82:CG82)","v":8}]
[81,"JORIS Jessy",null,null,null,null,null,null,null,null,null,null,null,null,null,null,null,null,null,null,null,null,null,null,null,null,null,null,null,null,null,null,null,null,null,null,null,null,null,null,null,null,null,null,null,null,6,null,null,null,null,null,null,null,null,null,null,null,null,null,null,null,null,null,null,null,null,null,null,null,null,null,null,null,null,null,null,null,null,null,null,null,null,null,null,{"$f":"SUM(C83:CG83)","v":6}]
[81,"PLAN Arnaud",null,null,null,null,null,null,null,null,null,null,null,null,null,null,0,null,null,null,null,null,null,null,null,6,null,null,null,null,null,null,null,null,null,null,null,null,null,null,null,null,null,null,null,null,null,null,null,null,null,null,null,null,null,null,null,null,null,null,null,null,null,null,null,null,null,null,null,null,null,null,null,null,null,null,null,null,null,null,null,null,null,null,null,{"$f":"SUM(C84:CG84)","v":6}]
[81,"BRAGER Michèle",null,null,null,null,null,null,null,null,null,null,null,null,null,null,null,null,null,null,null,null,null,null,null,6,null,null,null,null,null,null,null,null,null,null,null,null,null,null,null,null,null,null,null,null,null,null,null,null,null,null,null,null,null,null,null,null,null,null,null,null,null,null,null,null,null,null,null,null,null,null,null,null,null,null,null,null,null,null,null,null,null,null,null,{"$f":"SUM(C85:CG85)","v":6}]
[81,"GINESTE Alexis",null,null,null,null,null,null,null,null,null,null,null,null,null,null,null,null,null,null,null,null,null,null,null,null,null,null,null,null,null,null,null,null,2,null,null,null,null,null,null,null,null,null,null,null,null,null,null,4,null,null,null,null,null,null,null,null,null,null,null,null,null,null,null,null,null,null,null,null,null,null,null,null,null,null,null,null,null,null,null,null,null,null,null,{"$f":"SUM(C86:CG86)","v":6}]
[81,"PHILIP Christhophe",null,null,null,null,null,null,null,null,null,null,null,null,null,null,null,null,null,null,null,null,null,null,null,null,null,null,null,null,null,null,null,null,null,null,null,null,null,null,null,null,null,null,null,null,null,null,null,null,null,null,null,null,null,null,null,6,null,null,null,null,null,null,null,null,null,null,null,null,null,null,null,null,null,null,null,null,null,null,null,null,null,null,null,{"$f":"SUM(C87:CG87)","v":6}]
[86,"LEGAL Joris",null,null,null,null,null,null,null,null,null,null,4,null,null,null,null,null,null,null,null,null,null,null,null,null,null,null,null,null,null,null,null,null,null,null,null,null,null,null,null,null,null,null,null,null,null,null,null,null,null,null,null,null,null,null,null,null,null,null,null,null,null,null,null,null,null,null,null,null,null,null,null,null,null,null,null,null,null,null,null,null,null,null,null,{"$f":"SUM(C88:CG88)","v":4}]
[86,"PASCAL Joris",null,null,null,null,null,null,null,null,null,null,null,null,null,null,null,null,null,null,null,null,null,0,null,null,null,null,null,null,2,null,null,null,2,null,null,null,null,null,null,null,null,null,null,null,null,null,null,null,null,null,null,null,null,null,null,null,null,null,null,null,null,null,null,null,null,null,null,null,null,null,null,null,null,null,null,null,null,null,null,null,null,null,null,{"$f":"SUM(C89:CG89)","v":4}]
[88,"ROUVIERE Alain",null,null,null,null,null,null,null,null,null,null,null,null,null,null,null,null,null,null,null,null,null,null,null,null,null,null,null,null,null,null,null,null,null,null,null,null,null,null,null,null,null,null,null,null,null,null,null,null,null,null,null,null,null,null,null,null,null,null,null,null,null,null,null,2,null,null,null,null,null,null,null,null,null,null,null,null,null,null,null,null,null,null,null,{"$f":"SUM(C90:CG90)","v":2}]
[88,"PASSEMARD Sebastien",null,null,null,null,null,null,null,null,null,null,null,null,null,null,null,null,null,null,null,null,null,null,null,null,null,null,null,null,null,null,null,null,null,null,null,null,null,null,null,null,null,null,null,null,null,null,null,2,null,null,null,null,null,null,null,null,null,null,null,null,null,null,null,null,null,null,null,null,null,null,null,null,null,null,null,null,null,null,null,null,null,null,null,{"$f":"SUM(C91:CG91)","v":2}]
[90,"BONNAL Sylvain",null,null,null,null,null,null,null,null,null,null,null,null,null,null,null,null,null,null,null,null,null,null,null,null,null,null,null,null,null,null,null,null,0,null,null,null,null,null,null,null,null,null,null,null,null,null,null,null,null,null,null,null,null,null,null,null,null,null,null,null,null,null,null,null,null,null,null,null,null,null,null,null,null,null,null,null,null,null,null,null,null,null,null,{"$f":"SUM(C92:CG92)","v":0}]
[105,"CAYUELA Thomas",null,null,null,null,null,null,null,null,null,null,0,null,null,null,null,null,null,null,null,null,null,null,null,null,null,null,null,null,null,null,null,null,null,null,null,null,null,null,null,null,null,null,null,null,null,null,null,null,null,null,null,null,null,null,null,null,null,null,null,null,null,null,null,null,null,null,null,null,null,null,null,null,null,null,null,null,null,null,null,null,null,null,null,{"$f":"SUM(C93:CG93)","v":0}]
[113,"CASTELBOU Ines",null,null,null,null,null,null,null,null,null,null,null,null,null,null,null,null,null,null,null,null,null,null,null,null,null,null,null,null,null,null,null,null,null,null,null,null,null,null,null,null,null,null,null,null,null,null,null,null,null,null,null,null,0,null,null,null,null,null,null,null,null,null,null,null,null,null,null,null,null,null,null,null,null,null,null,null,null,null,null,null,null,null,null,{"$f":"SUM(C94:CG94)","v":0}]
[113,"PRIVAT Xavier",null,null,null,null,null,null,0,null,null,null,null,null,null,null,null,null,null,null,null,0,null,null,null,null,null,null,null,null,null,null,null,null,null,null,null,null,null,null,null,null,null,null,null,null,null,null,null,null,null,null,null,null,null,null,null,null,null,null,null,null,null,null,null,null,null,null,null,null,null,null,null,null,null,null,null,null,null,null,null,null,null,null,null,{"$f":"SUM(C95:CG95)","v":0}]
[113,"MARITORENA PENA Alizée",null,null,null,null,null,null,null,null,null,null,null,null,null,null,null,null,null,null,null,null,null,null,null,null,null,null,null,null,null,null,null,null,null,null,null,null,null,null,null,null,null,null,null,null,null,null,null,null,null,null,null,null,null,null,null,0,null,null,null,null,null,null,null,null,null,null,null,null,null,null,null,null,null,null,null,null,0,null,null,null,null,null,null,{"$f":"SUM(C96:CG96)","v":0}]

{"sheet":"Montagne","index":2,"n_rows":196,"n_cols":31,"rows_kept":196,"cut":false,"hidden":false,"merged":[[0,0,0,25],[1,0,1,1]]}
["CLASSEMENT PROVISOIRE CHALLENGE MONTAGNE ASA LOZERE 2024"]
[null,null,"Les Abarines","ESPALION","Lodève","BAGNOLS SABRAN","Col St Pierre","Col De  Ferrier","Sumène","La Sumene","Roquefort","Quillan Régionale","Quillan Nationale","Issoire","Istres","Pin","Revel","beaugolais","Courpiere","MALENE","Col Du Fau","Col De Font Romeu","Cacharat","Mont Dore","Saint Antonin","Laussone","Chanrousse","Turckheim","Pompidou","Neffies","TOTAL"]
[1,"CAZALENS Joël",null,32,80,80,80,null,null,null,32,16,55,null,null,null,32,null,null,30,22,22,null,35,32,null,null,null,34,18,{"$f":"SUM(C3:AD3)","v":600}]
[2,"SIMON Richard",null,null,45,50,50,null,null,null,null,null,65,null,null,null,null,60,null,null,null,null,null,55,null,null,null,55,34,null,414]
[3,"MARCILLAC Arnaud",32,24,null,40,35,null,22,null,32,null,null,null,null,null,null,null,26,44,32,32,null,null,16,null,null,null,28,16,379]
[4,"MONZIOLS Cédric",null,26,55,5,20,null,16,null,18,null,null,null,null,null,null,null,8,44,28,22,null,null,16,null,null,null,40,24,322]
[5,"RECORDIER Jean-Marie",null,null,40,10,25,60,null,null,null,28,55,null,10,null,null,20,null,36,null,null,null,null,null,null,null,null,null,null,284]
[6,"RICARD Kévin",null,12,25,25,25,null,null,10,null,null,null,10,null,null,28,null,10,22,null,null,10,40,28,null,null,null,22,12,279]
[7,"VAUTRIN Eric",null,null,25,40,40,null,null,null,null,null,null,null,12,null,null,null,null,32,24,24,null,null,null,null,30,null,24,null,251]
[8,"CHOQUET Arnaud",null,20,50,null,35,null,null,null,20,null,null,null,null,null,14,null,null,24,14,14,null,null,18,null,null,null,20,null,229]
[9,"TEYSSIER Frederic",16,null,55,40,25,null,20,null,null,null,null,null,null,null,null,null,null,28,null,null,null,null,null,null,null,null,26,null,210]
[10,"TABUSSE Sylvain",20,null,null,25,null,null,14,null,null,null,null,null,null,null,null,null,null,30,null,null,null,null,null,20,null,null,24,null,133]
[11,"MONZIOLS Alexis",null,12,20,null,null,null,null,null,null,null,null,null,null,null,null,null,2,32,null,null,null,null,null,null,null,null,20,8,94]
[12,"GIRE Sebastien",null,null,null,null,null,null,24,null,null,14,null,null,null,null,null,null,null,null,10,10,null,null,null,null,null,null,22,14,94]
[13,"GIRE Damien",null,null,null,null,null,null,12,null,null,10,null,null,null,null,null,null,null,18,2,2,null,null,null,null,null,null,22,10,76]
[14,"MIAZGOWSKI Gilles",null,null,null,null,null,null,null,null,12,null,null,null,null,null,8,null,2,22,null,null,null,null,null,null,null,null,24,4,72]
[15,"MONTEIL Dominique",null,null,null,null,null,null,null,null,null,null,null,10,null,null,null,null,null,32,null,null,null,null,null,null,null,null,26,null,68]
[16,"CASTELBOU Franck",null,30,null,null,null,null,null,null,null,null,null,null,null,null,null,null,null,34,null,null,null,null,null,null,null,null,null,null,64]
[17,"CASTELBOU Adrien",null,24,null,null,null,null,null,null,null,null,null,null,null,null,null,null,null,40,null,null,null,null,null,null,null,null,null,null,64]
[18,"BRUNET Thierry",20,null,null,null,null,null,null,null,null,null,null,null,null,null,null,null,null,44,null,null,null,null,null,null,null,null,null,null,64]
[19,"MAURIN Jean-François",null,null,null,null,null,null,null,null,null,null,null,null,null,null,null,null,null,22,null,null,null,null,null,null,null,null,20,null,42]
[20,"LOUBAUD Marcel",2,null,null,null,null,null,4,null,null,null,null,null,null,null,null,null,null,14,null,null,null,null,null,2,null,null,18,null,40]
[21,"LEBORNE Bastien",null,null,null,null,null,null,null,null,null,null,null,null,null,null,null,null,null,32,null,null,null,null,null,null,null,null,null,null,32]
[22,"LACAN Benoît",null,14,null,null,null,null,null,null,null,null,null,16,null,null,null,null,null,null,null,null,null,null,null,null,null,null,null,null,30]
[23,"LAURET Jérôme",null,null,null,null,null,null,null,null,null,null,null,null,null,null,null,null,null,26,null,null,null,null,null,null,null,null,null,null,26]
[24,"HEBRARD Michel",null,null,null,null,null,null,null,null,null,null,null,null,null,null,null,null,null,26,null,null,null,null,null,null,null,null,null,null,26]
[25,"AFFORTIT Quentin",null,null,null,null,null,null,null,null,null,null,null,null,null,null,null,null,null,null,null,null,null,null,null,null,null,null,24,null,24]
[26,"VEYRUN Guillaume",22,null,null,null,null,null,null,null,null,null,null,null,null,null,null,null,null,null,null,null,null,null,null,null,null,null,null,null,22]
[27,"RAYMOND Eric",null,null,null,null,null,null,null,null,22,null,null,null,null,null,null,null,null,null,null,null,null,null,null,null,null,null,null,null,22]
[28,"ROUX Cedric",null,null,null,null,null,null,null,null,null,null,null,null,null,null,null,null,null,22,null,null,null,null,null,null,null,null,null,null,22]
[29,"SIMON Manon",null,null,null,null,null,null,null,null,18,null,null,null,null,null,null,null,null,null,null,null,null,null,null,null,null,null,null,null,18]
[30,"KUENEMANN Katia",null,null,null,null,null,null,2,null,null,null,null,null,null,null,null,null,null,14,null,null,null,null,null,null,null,null,null,null,16]
[31,"VAZ DOS SANTOS Kévin",14,null,null,null,null,null,null,null,null,null,null,null,null,null,null,null,null,null,null,null,null,null,null,null,null,null,null,null,14]
[32]
[33]
[34]
[35]
[36]
[37]
[38]
[39]
[40]
[41]
[42]
[43]
[44]
[45]
[46]
[47]
[48]
[49]
[50]
[51]
[52]
[53]
[54]
[55]
[56]
[57]
[58]
[59]
[60]
[61]
[62]
[63]
[64]
[65]
[66]
[67]
[68]
[69]
[70]
[71]
[72]
[73]
[74]
[75]
[76]
[77]
[78]
[79]
[80]
[81]
[82]
[83]
[84]
[85]
[86]
[87]
[88]
[89]
[90]
[91]
[92]
[93]
[94]
[95]
[96]
[97]
[98]
[99]
[100]
[101]
[102]
[103]
[104]
[105]
[106]
[107]
[108]
[109]
[110]
[111]
[112]
[113]
[114]
[115]
[116]
[117]
[118]
[119]
[120]
[121]
[122]
[123]
[124]
[125]
[126]
[127]
[128]
[129]
[130]
[131]
[132]
[133]
[134]
[135]
[136]
[137]
[138]
[139]
[140]
[141]
[142]
[143]
[144]
[145]
[146]
[147]
[148]
[149]
[150]
[151]
[152]
[153]
[154]
[155]
[156]
[157]
[158]
[159]
[160]
[161]
[162]
[163]
[164]
[165]
[166]
[167]
[168]
[169]
[170]
[171]
[172]
[173]
[174]
[175]
[176]
[177]
[178]
[179]
[180]
[181]
[182]
[183]
[184]
[185]
[186]
[187]
[188]
[189]
[190]
[191]
[192]
[193]
[194]